fUST/lending_fUST_20240118
["ID","MTS","AMOUNT","RATE_DAILY","PERIOD"]
[312005936,1705542644184,-1847.7,0.00030308,2]
[312005937,1705542644193,-5000.0,0.00030309,2]
[312005938,1705542644203,-4999.97,0.00030315,2]
[312005939,1705542644212,-153.756851,0.00030315,2]
[312005940,1705542644221,-4105.53,0.00030317,2]
[312005941,1705542644229,-153.52997654,0.00030317,2]
[312005942,1705542644238,-4999.99,0.00030318,2]
[312005943,1705542644248,-543.340502,0.00030318,2]
[312005944,1705542644257,-543.340502,0.00030318,2]
[312005945,1705542644266,-4999.99,0.00030319,2]
[312005946,1705542644275,-5091.21,0.0003032,2]
[312005947,1705542644284,-4999.97,0.00030322,2]
[312005948,1705542644293,-4999.97,0.00030323,2]
[312005949,1705542644303,-4999.97,0.00030325,2]
[312005950,1705542644312,-4999.99,0.00030327,2]
[312005951,1705542644322,-4999.98,0.00030327,2]
[312005952,1705542644331,-500.0,0.0003041,2]
[312005953,1705542644340,-153.23014305,0.00030418,7]
[312005954,1705542644350,-200.0,0.00030442,15]
[312005955,1705542644359,-200.0,0.00030442,15]
[312005956,1705542644368,-368.0,0.00030442,15]
[312005957,1705542644377,-151.0,0.00030476,2]
[312005958,1705542644387,-4999.96,0.00030485,2]
[312005959,1705542644396,-5000.0,0.00030489,2]
[312005960,1705542644405,-471.0,0.000305,2]
[312005961,1705542644414,-5000.0,0.00030508,2]
[312005962,1705542644423,-4999.99,0.0003051,2]
[312005963,1705542644432,-4382.6,0.00030516,2]
[312005964,1705542644441,-500.0,0.00030547,2]
[312005965,1705542644451,-620.00935405,0.00030561,2]
[312005966,1705542644460,-476.133499,0.00030607,2]
[312005967,1705542644469,-166.150183,0.00030607,2]
[312005968,1705542644478,-210.0,0.00030665,30]
[312005969,1705542644488,-210.0,0.00030675,30]
[312005970,1705542644497,-500.0,0.00030684,2]
[312005971,1705542644506,-210.0,0.00030685,30]
[312005972,1705542644515,-153.23014305,0.00030688,7]
[312005973,1705542644524,-865.0,0.00030695,30]
[312005974,1705542644533,-5000.0,0.00030697,7]
[312005975,1705542644541,-865.0,0.00030705,30]
[312005976,1705542644551,-865.0,0.00030715,30]
[312005977,1705542644559,-500.0,0.00030821,2]
[312005978,1705542644570,-248.54102261,0.00030885,7]
[312005979,1705542644578,-269.0,0.000309,3]
[312005980,1705542644587,-1500.0,0.000309,2]
[312005981,1705542644596,-248.54102261,0.00030939,7]
[312005982,1705542644605,-1000.0,0.00030942,7]
[312005983,1705542644614,-500.0,0.00030958,2]
[312005984,1705542644624,-235.35,0.0003099,30]
[312005985,1705542644633,-97008.73081987,0.00031,4]
[312005986,1705542644643,-263.0,0.00031,2]
[312005987,1705542644651,-18357.61766108,0.00031,2]
[312005988,1705542644660,-500.0,0.00031095,2]
[312005989,1705542644669,-2550.15380316,0.00031111,2]
[312005990,1705542644678,-637.34140239,0.00031232,2]
[312005991,1705542644687,-151.0,0.00031234,2]
[312005992,1705542644695,-248.54102261,0.00031242,7]
[312005993,1705542644704,-153.23014305,0.00031251,7]
[312005994,1705542644714,-150.0,0.00031317,2]
[312005995,1705542644723,-153.23014305,0.00031339,7]
[312005996,1705542644732,-248.54102261,0.00031348,7]
[312005997,1705542644742,-5002.636731,0.000314,2]
[312005998,1705542644751,-5420.916514,0.000314,2]
[312005999,1705542644760,-155.0,0.00031507,2]
[312006000,1705542644769,-476.133499,0.00031526,2]
[312006001,1705542644778,-248.54102261,0.00031553,7]
[312006002,1705542644787,-1000.0,0.00031565,2]
[312006003,1705542644796,-1000.0,0.00031578,2]
[312006004,1705542644806,-1000.0,0.00031607,2]
[312006005,1705542644816,-11226.75463028,0.00031615,7]
[312006006,1705542644826,-543.340502,0.00031615,2]
[312006007,1705542644835,-543.340502,0.00031615,2]
[312006008,1705542644845,-1000.0,0.00031621,2]
[312006009,1705542644854,-987.94246959,0.00031635,2]
[312006010,1705542644863,-300.0,0.00031644,2]
[312006011,1705542644873,-1000.0,0.00031661,2]
[312006012,1705542644882,-245.009401,0.000317,4]
[312006013,1705542644891,-1000.0,0.00031719,2]
[312006014,1705542644900,-1000.0,0.0003173,2]
[312006015,1705542644910,-1000.0,0.00031738,2]
[312006016,1705542644919,-396.87128592,0.00031753,2]
[312006017,1705542644929,-631.57296761,0.00031753,7]
[312006018,1705542644938,-519.31605473,0.00031753,7]
[312006019,1705542644947,-1000.0,0.00031753,7]
[312006020,1705542644957,-304.6427917,0.00031753,7]
[312006021,1705542644966,-478.70178574,0.00031753,7]
[312006022,1705542644976,-5000.0,0.00031753,7]
[312006023,1705542644985,-1391.54959299,0.00031753,7]
[312006024,1705542644995,-6957.74796495,0.00031753,7]
[312006025,1705542645004,-153.23014305,0.00031757,7]
[312006026,1705542645016,-500.0,0.00031766,2]
[312006027,1705542645025,-500.0,0.00031766,2]
[312006028,1705542645034,-500.0,0.00031766,2]
[312006029,1705542645042,-500.0,0.00031766,2]
[312006030,1705542645052,-500.0,0.00031766,2]
[312006031,1705542645062,-270830.71874093,0.00031815,2]
[312006032,1705542645072,-151.0,0.00031815,2]
[312006033,1705542645082,-151.0,0.00031815,2]
[312006034,1705542645092,-172.244444,0.00031815,2]
[312006035,1705542645102,-543.340502,0.00031815,2]
[312006036,1705542645111,-543.340502,0.00031815,2]
[312006037,1705542645121,-160.81104418,0.00031867,2]
[312006038,1705542645130,-150.0,0.000319,3]
[312006039,1705542645139,-1500.0,0.000319,2]
[312006040,1705542645148,-163.898293,0.000319,2]
[312006041,1705542645214,-245.009401,0.000319,4]
[312006042,1705542645223,-245.009401,0.000319,4]
[312006043,1705542645233,-245.009401,0.000319,4]
[312006044,1705542645242,-30291.7652474,0.00031915,4]
[312006045,1705542645252,-4436.45481952,0.00031915,7]
[312006046,1705542645261,-500.0,0.00031915,7]
[312006047,1705542645270,-93997.20961228,0.00031915,7]
[312006048,1705542645279,-5000.0,0.00031915,7]
[312006049,1705542645287,-7554.52244909,0.00031915,7]
[312006050,1705542645296,-35883.98163318,0.00031915,7]
[312006051,1705542645306,-151.0,0.00031992,2]
[312006052,1705542645315,-219.419749,0.00031999,2]
[312006053,1705542645325,-152.118286,0.00031999,2]
[312006054,1705542645334,-151.0,0.00031999,2]
[312006055,1705542645343,-151.0,0.00031999,2]
[312006056,1705542645353,-3133.37588219,0.00032,2]
[312006057,1705542645362,-301.0,0.00032,2]
[312006058,1705542645371,-27300.0,0.00032,14]
[312006059,1705542645380,-79415.60549857,0.00032,15]
[312006060,1705542645400,-1939.6790566,0.00032,15]
[312006061,1705542645476,-200.79600446,0.00019801,2]
[312006062,1705542645486,-247.80651065,0.0002435,2]
[312006063,1705542645495,-3774.65028454,0.0003013,2]
[312006064,1705542645507,-450.25971546,0.0003013,2]
[312006065,1705542645516,-4224.91,0.0003013,2]
[312006066,1705542645525,-4224.91,0.0003013,2]
[312006067,1705542645534,-1428.4614006,0.00032,15]
[312006068,1705542645546,-3486.57288905,0.00032,15]
[312006069,1705542645557,-79028.17068137,0.00032,15]
[312006070,1705542645570,-503.01188397,0.00032,15]
[312006131,1705542646372,-482.37515172,0.00025157,3]
[312006193,1705542849533,6111.940155,0.000125,2]
[312006195,1705542878614,-185.27753363,0.00019698,2]
[312006196,1705542878644,-1993.2701284,0.00019797,2]
[312006197,1705542878733,-44.46015637,0.00019797,2]
[312006198,1705542893988,-1267.03802646,0.00019797,2]
[312006199,1705542894020,-25.85791891,0.00019797,2]
[312006200,1705542901215,-1240.32891907,0.00019797,2]
[312006201,1705542901393,-25.31283508,0.00019797,2]
[312006203,1705542951150,-1996.97567908,0.00019797,2]
[312006204,1705542951247,-40.75460569,0.00019797,2]
[312006205,1705542977775,-1240.32891907,0.00019797,2]
[312006206,1705542977964,-25.31283508,0.00019797,2]
[312006207,1705543062195,-1240.32891907,0.00019797,2]
[312006208,1705543062314,-25.31283508,0.00019797,2]
[312006210,1705543333534,71698.356814,0.0001832,2]
[312006211,1705543407436,24900.0,0.00018156,2]
[312006214,1705543675007,-2037.73028477,0.00018801,2]
[312006215,1705543675033,-616.3385083,0.00018802,2]
[312006216,1705543675058,-1578.25252974,0.00018802,2]
[312006217,1705543675083,-875.79767203,0.00018803,2]
[312006218,1705543675109,-154.9690062,0.00018804,2]
[312006219,1705543675134,-154.9690062,0.00018804,2]
[312006220,1705543675160,-154.9690062,0.00018805,2]
[312006221,1705543675186,-154.9690062,0.00018806,2]
[312006222,1705543675211,-1265.64175415,0.00018806,2]
[312006223,1705543675237,-5006.36322621,0.00018806,2]
[312006224,1705543675376,-12000.0,0.00018806,2]
[312006225,1705543675414,-12000.0,0.00018806,2]
[312006226,1705543675463,-12000.0,0.00018806,2]
[312006227,1705543675568,-12000.0,0.00018806,2]
[312006228,1705543675684,-12000.0,0.00018806,2]
[312006229,1705543675789,-12000.0,0.00018806,2]
[312006230,1705543675890,-4151.22029577,0.00018806,2]
[312006231,1705543675916,-7848.77970423,0.00018807,2]
[312006232,1705543676007,-5862.31012369,0.00018807,2]
[312006233,1705543676032,-301.73207078,0.00018807,2]
[312006234,1705543676056,-154.9690062,0.00018807,2]
[312006235,1705543676082,-154.9690062,0.00018807,2]
[312006236,1705543676109,-5526.01979313,0.00018807,2]
[312006237,1705543676139,-9683.98601727,0.00018807,2]
[312006238,1705543676164,-154.9690062,0.00018808,2]
[312006239,1705543676189,-526.3874506,0.00018808,2]
[312006240,1705543676214,-1634.65752593,0.00018808,2]
[312006241,1705543676244,-12000.0,0.00018808,2]
[312006242,1705543676438,-5257.25716673,0.00018808,2]
[312006243,1705543676464,-648.39329074,0.00018811,2]
[312006244,1705543676489,-681.51136239,0.00018811,2]
[312006245,1705543676515,-912.89433529,0.00018811,2]
[312006246,1705543676541,-362.80217937,0.00018812,2]
[312006247,1705543676566,-155.45864981,0.00018812,2]
[312006248,1705543676592,-175.69960109,0.00018812,2]
[312006249,1705543676617,-156.12045288,0.00018812,2]
[312006250,1705543676642,-3649.8629617,0.00018813,2]
[312006251,1705543676672,-2945.79649995,0.00018813,2]
[312006252,1705543676698,-2072.13666013,0.0001883,2]
[312006253,1705543676723,-6982.06683992,0.0001883,2]
[312006254,1705543676753,-12000.0,0.0001883,2]
[312006255,1705543676783,-777.69964305,0.0001883,2]
[312006256,1705543676808,-1581.11940922,0.00019,2]
[312006257,1705543676834,-169.923548,0.00019178,2]
[312006258,1705543676917,687.4903872,0.000188,2]
[312006259,1705543677275,3127.66612241,0.000188,2]
[312006260,1705543678387,3743.44064302,0.000188,2]
[312006261,1705543680351,-12000.0,0.00018801,2]
[312006262,1705543680593,-6891.91469266,0.00018801,2]
[312006263,1705543687268,-300.17377463,0.00018804,2]
[312006264,1705543687425,-300.17377463,0.00018804,2]
[312006265,1705543687547,-300.17377463,0.00018804,2]
[312006266,1705543687705,-8252.76404605,0.00018804,2]
[312006267,1705543687731,-306.29977003,0.0001976,2]
[312006268,1705543688105,326.24580349,0.00018804,2]
[312006269,1705543688252,90.91351846,0.00018804,2]
[312006270,1705543688278,1480.7879063,0.00018804,2]
[312006271,1705543689210,154.9690062,0.0001976,2]
[312006272,1705543689260,243.09514202,0.0001976,2]
[312006273,1705543691259,-154.9690062,0.0001976,2]
[312006274,1705543691286,-219.7996111,0.0001976,2]
[312006275,1705543691458,-7.64833913,0.0001976,2]
[312006276,1705543691483,-881.70309742,0.0001976,2]
[312006277,1705543693150,349.48621622,0.0001976,2]
[312006278,1705543693175,266.85229208,0.0001976,2]
[312006279,1705543693206,527.00933745,0.00019759,2]
[312006280,1705543693318,154.9690062,0.00019759,2]
[312006281,1705543699865,-5752.698,0.00019789,3]
[312006282,1705543699966,-117.402,0.00019789,3]
[312006283,1705543710578,-200.0,0.00019761,2]
[312006284,1705543710604,-104.44364233,0.00019793,2]
[312006285,1705543710862,-304.44364233,0.00019793,2]
[312006286,1705543711054,-355.48879247,0.00019793,2]
[312006287,1705543711081,-155.68777169,0.00019797,2]
[312006288,1705543711106,-154.9690062,0.00019797,2]
[312006289,1705543711317,184.41934961,0.00019797,2]
[312006290,1705543711896,100.61250847,0.00019789,3]
[312006291,1705543711921,951.17742844,0.00019789,3]
[312006292,1705543711947,652.82265895,0.00019789,3]
[312006293,1705543711973,652.82265895,0.00019789,3]
[312006460,1705543838559,-191.28367071,0.0001969,2]
[312006462,1705543838569,-861.98869635,0.0001969,2]
[312006464,1705543838578,-561.25963229,0.00019691,2]
[312006466,1705543838588,-154.9690062,0.00019691,2]
[312006468,1705543838599,-20887.67394558,0.00019691,2]
[312006470,1705543838608,-265.2811879,0.00019691,2]
[312006472,1705543838617,-7954.79361021,0.00019691,2]
[312006474,1705543838626,-301.73207078,0.00019692,2]
[312006476,1705543838635,-3127.66612241,0.00019692,2]
[312006478,1705543838644,-361.23328326,0.00019692,2]
[312006480,1705543838652,-3743.44064302,0.00019693,2]
[312006482,1705543838663,-616.3385083,0.00019693,2]
[312006484,1705543838672,-1265.64175415,0.00019694,2]
[312006486,1705543838681,-260.95401004,0.00019694,2]
[312006488,1705543838690,-1992.22396465,0.00019695,2]
[312006490,1705543838699,-521.75377805,0.00019695,2]
[312006492,1705543838708,-154.9690062,0.00019695,2]
[312006494,1705543838717,-2037.73028477,0.00019695,2]
[312006496,1705543838726,-1695.61964164,0.00019696,2]
[312006498,1705543838737,-154.9690062,0.00019696,2]
[312006500,1705543838746,-214.5126011,0.00019697,2]
[312006502,1705543838755,-3048.14,0.00019774,3]
[312006504,1705543838765,-902.97118459,0.00019782,2]
[312006506,1705543838774,-164.53558271,0.00019782,2]
[312006508,1705543838782,-178.79017593,0.00019783,2]
[312006510,1705543838791,-242.95252514,0.00019783,2]
[312006512,1705543838800,-81157.58352198,0.00019784,2]
[312006514,1705543838809,-154.9690062,0.00019789,2]
[312006516,1705543838818,-547.57434478,0.00019789,2]
[312006517,1705543838826,-311.26420297,0.00019789,2]
[312006519,1705543838835,-534.78217617,0.00019789,2]
[312006521,1705543838844,-3216.22820706,0.00019789,2]
[312006523,1705543838854,-10293.9434922,0.00019789,2]
[312006525,1705543838863,-154.9690062,0.00019789,2]
[312006526,1705543838872,-1212.96144838,0.00019789,2]
[312006527,1705543838882,-182.79218758,0.00019789,2]
[312006528,1705543838891,-154.9690062,0.00019789,2]
[312006529,1705543838900,-621.70734391,0.00019789,2]
[312006530,1705543838909,-154.9690062,0.00019789,2]
[312006531,1705543838918,-166.77579165,0.00019789,2]
[312006532,1705543838927,-155.18848113,0.00019789,2]
[312006533,1705543838935,-194.21381984,0.00019789,2]
[312006534,1705543838944,-206.00058192,0.00019789,2]
[312006535,1705543838953,-263.08819335,0.00019793,2]
[312006536,1705543838962,-155.94559635,0.00019793,2]
[312006537,1705543838971,-214.10988928,0.00019793,2]
[312006538,1705543838980,-155.31507598,0.00019793,2]
[312006539,1705543838989,-404.49032914,0.00019793,2]
[312006540,1705543838997,-167.12582178,0.00019793,2]
[312006541,1705543839006,-470.34681749,0.00019793,2]
[312006542,1705543839015,-322.7629785,0.00019793,2]
[312006543,1705543839024,-200.29334976,0.00019793,2]
[312006544,1705543839033,-261.56637145,0.00019793,2]
[312006545,1705543839042,-273.34751517,0.00019794,2]
[312006546,1705543839050,-19915.22217018,0.00019794,2]
[312006547,1705543839060,-679.38970446,0.00019795,2]
[312006548,1705543839069,-199.81267601,0.00019795,2]
[312006549,1705543839078,-155.58491573,0.00019795,2]
[312006550,1705543839087,-155.45031513,0.00019795,2]
[312006551,1705543839096,-643.67242147,0.00019795,2]
[312006552,1705543839105,-254.91086921,0.00019795,2]
[312006556,1705543839116,-15204.41172658,0.00019795,2]
[312006558,1705543839201,-19680.32630382,0.00019795,2]
[312006560,1705543839210,-330.39630649,0.00019796,2]
[312006562,1705543839219,-15897.44232842,0.00019796,2]
[312006564,1705543839229,-590.16912172,0.00019796,2]
[312006566,1705543839238,-1746.37499001,0.00019796,2]
[312006568,1705543839247,-874.49996905,0.00019797,2]
[312006570,1705543839256,-175.2996158,0.00019797,2]
[312006572,1705543839266,-155.93652186,0.00019798,2]
[312006574,1705543839275,-155.8634862,0.00019798,2]
[312006577,1705543839285,-232.80556665,0.00019798,2]
[312006578,1705543839294,-2079.70852792,0.00019798,2]
[312006580,1705543839303,-1590.80489866,0.00019798,2]
[312006582,1705543839312,-205.27695221,0.00019798,2]
[312006584,1705543839321,-157.94207384,0.00019798,2]
[312006586,1705543839330,-155.37755141,0.00019799,2]
[312006588,1705543839338,-470.2557354,0.000198,2]
[312006590,1705543839350,-155.45713133,0.000198,2]
[312006592,1705543839360,-260.97111048,0.000198,2]
[312006594,1705543839369,-20853.11941142,0.000198,2]
[312006596,1705543839378,-155.31797269,0.00019801,2]
[312006598,1705543839388,-156.71629179,0.0002,2]
[312006600,1705543839397,-154.9690062,0.0002,2]
[312006602,1705543839406,-238.02437486,0.0002,2]
[312006604,1705543839415,-1196.96135251,0.0002,2]
[312006606,1705543839425,-678.05962952,0.0002,2]
[312006608,1705543839437,-2995.72102978,0.0002,2]
[312006610,1705543839446,-849.59512114,0.0002,2]
[312006612,1705543839455,-570.6927824,0.0002,2]
[312006614,1705543839464,-154.9690062,0.0002,2]
[312006616,1705543839473,-154.9690062,0.0002,2]
[312006618,1705543839482,-154.9690062,0.0002,2]
[312006620,1705543839491,-187.4856675,0.0002,2]
[312006622,1705543839500,-175.573582,0.00020017,2]
[312006624,1705543839509,-379.524209,0.00020095,2]
[312006626,1705543839518,-200.0,0.0002077,2]
[312006628,1705543839526,-285.78113705,0.00020998,2]
[312006630,1705543839535,-1295.23514882,0.00020998,2]
[312006632,1705543839544,-13321.06536399,0.00021,2]
[312006634,1705543839553,-13719.8049275,0.00021,2]
[312006636,1705543839562,-250.59967114,0.00021,2]
[312006638,1705543839571,-327.24959811,0.00021,2]
[312006640,1705543839580,-1815.75822214,0.00021,2]
[312006642,1705543839589,-1000.0,0.000211,2]
[312006644,1705543839598,-214.51260109,0.00021166,2]
[312006646,1705543839607,-166.666666,0.00021918,2]
[312006648,1705543839616,-425.62034809,0.00022,2]
[312006650,1705543839625,-3959.1053351,0.00022,2]
[312006652,1705543839634,-293.23530462,0.00022,4]
[312006654,1705543839644,-166.666666,0.00022431,2]
[312006656,1705543839653,-214.51260109,0.00022635,2]
[312006658,1705543839662,-154.9690062,0.00022636,4]
[312006660,1705543839671,-1125.42236376,0.00022638,2]
[312006662,1705543839680,-280.0,0.00022847,7]
[312006664,1705543839689,-166.666666,0.00022944,2]
[312006666,1705543839698,-166.666666,0.00023456,2]
[312006668,1705543839707,-9112.94247828,0.00023899,2]
[312006670,1705543839718,-166.666666,0.00023969,2]
[312006672,1705543839727,-1570.12942806,0.00024,2]
[312006674,1705543839735,-214.51260109,0.00024103,2]
[312006676,1705543839744,-150.0,0.000243,2]
[312006678,1705543839753,-1000.0,0.00024349,3]
[312006680,1705543839762,-1000.0,0.00024349,3]
[312006682,1705543839771,-1000.0,0.00024349,3]
[312006684,1705543839780,-1000.0,0.00024349,3]
[312006686,1705543839789,-1000.0,0.00024349,3]
[312006688,1705543839798,-1000.0,0.00024349,3]
[312006690,1705543839806,-1000.0,0.00024349,3]
[312006692,1705543839815,-1000.0,0.00024349,3]
[312006694,1705543839825,-1024.33788505,0.00024349,3]
[312006696,1705543839834,-166.666666,0.00024482,2]
[312006698,1705543839842,-150.0,0.000249,2]
[312006700,1705543839851,-4010.78536694,0.00024948,2]
[312006702,1705543839860,-497.89805688,0.0002495,5]
[312006704,1705543839869,-274.5510469,0.00025,2]
[312006706,1705543839878,-1038.14311611,0.00025,2]
[312006708,1705543839887,-1045.45812768,0.00025,2]
[312006710,1705543839896,-3000.0,0.00025,2]
[312006712,1705543839905,-4718.82684458,0.00025,2]
[312006714,1705543839914,-500.0,0.00025066,2]
[312006716,1705543839923,-500.0,0.00025066,2]
[312006718,1705543839931,-500.0,0.00025066,2]
[312006720,1705543839940,-500.0,0.00025066,2]
[312006722,1705543839948,-500.0,0.00025066,2]
[312006724,1705543839958,-500.0,0.00025066,2]
[312006726,1705543839967,-500.0,0.00025066,2]
[312006728,1705543839976,-500.0,0.00025066,2]
[312006730,1705543839985,-500.0,0.00025066,2]
[312006732,1705543839994,-500.0,0.00025066,2]
[312006734,1705543840002,-500.0,0.00025066,2]
[312006736,1705543840011,-500.0,0.00025066,2]
[312006738,1705543840020,-500.0,0.00025066,2]
[312006740,1705543840028,-500.0,0.00025066,2]
[312006742,1705543840037,-179.38036181,0.00025066,2]
[312006744,1705543840046,-500.0,0.00025066,2]
[312006746,1705543840054,-500.0,0.00025066,2]
[312006748,1705543840064,-500.0,0.00025066,2]
[312006750,1705543840074,-500.0,0.00025066,2]
[312006752,1705543840082,-500.0,0.00025066,2]
[312006754,1705543840092,-500.0,0.00025066,2]
[312006756,1705543840101,-500.0,0.00025066,2]
[312006758,1705543840110,-500.0,0.00025066,2]
[312006760,1705543840119,-500.0,0.00025066,2]
[312006762,1705543840127,-500.0,0.00025066,2]
[312006764,1705543840136,-500.0,0.00025066,2]
[312006766,1705543840145,-500.0,0.00025066,2]
[312006768,1705543840154,-500.0,0.00025066,2]
[312006770,1705543840163,-500.0,0.00025066,2]
[312006771,1705543840172,-500.0,0.00025066,2]
[312006773,1705543840181,-500.0,0.00025066,2]
[312006775,1705543840190,-500.0,0.00025066,2]
[312006777,1705543840199,-500.0,0.00025066,2]
[312006779,1705543840208,-500.0,0.00025066,2]
[312006781,1705543840217,-500.0,0.00025066,2]
[312006783,1705543840226,-500.0,0.00025066,2]
[312006785,1705543840235,-500.0,0.00025066,2]
[312006787,1705543840244,-209.87051515,0.00025066,2]
[312006789,1705543840253,-500.0,0.00025066,2]
[312006791,1705543840261,-500.0,0.00025066,2]
[312006793,1705543840270,-500.0,0.00025066,2]
[312006795,1705543840279,-276000.0,0.00025067,2]
[312006797,1705543840288,-391.0,0.00025132,7]
[312006799,1705543840298,-155.34719469,0.00025151,2]
[312006801,1705543840307,-155.46025879,0.00025151,2]
[312006803,1705543840316,-683.41671788,0.00025152,2]
[312006805,1705543840326,-1794.75854909,0.00025153,5]
[312006807,1705543840335,-154.98450155,0.00025153,2]
[312006809,1705543840344,-154.98450155,0.00025153,2]
[312006811,1705543840353,-155.31078673,0.00025153,2]
[312006813,1705543840365,-155.16448353,0.00025153,2]
[312006815,1705543840374,-10275.78097609,0.00025154,2]
[312006817,1705543840384,-1318.93877782,0.00025154,2]
[312006820,1705543840393,-155.3769586,0.00025155,2]
[312006821,1705543840402,-300.0,0.00025157,2]
[312006824,1705543840412,-2082.71954556,0.00025157,2]
[312006826,1705543840421,-980.59542492,0.00025157,2]
[312006828,1705543840430,-176.93243673,0.00025157,2]
[312006830,1705543840440,-154.9690062,0.00025157,2]
[312006832,1705543840449,-200.0,0.00025157,2]
[312006834,1705543840459,-1824.64474457,0.00025157,2]
[312006836,1705543840467,-7193.15698043,0.00025297,2]
[312006838,1705543840476,-214.51260109,0.00025572,2]
[312006840,1705543840485,-60000.0,0.00025639,2]
[312006842,1705543840495,-50000.0,0.00025656,2]
[312006844,1705543840504,-688.84064045,0.0002566,4]
[312006846,1705543840513,-441.58419443,0.0002566,4]
[312006848,1705543840522,-500.0,0.0002566,4]
[312006850,1705543840530,-500.0,0.0002566,4]
[312006851,1705543840540,-500.0,0.0002566,4]
[312006853,1705543840549,-500.0,0.0002566,4]
[312006855,1705543840558,-688.84064045,0.0002566,4]
[312006857,1705543840568,-688.84064045,0.0002566,4]
[312006860,1705543840577,-500.0,0.0002566,4]
[312006869,1705543840647,-238.41130388,0.0002566,4]
[312006873,1705543840657,-688.84064045,0.0002566,4]
[312006877,1705543840666,-500.0,0.0002566,4]
[312006881,1705543840675,-688.84064045,0.0002566,4]
[312006885,1705543840684,-688.84064045,0.0002566,4]
[312006889,1705543840693,-688.84064045,0.0002566,4]
[312006893,1705543840702,-688.84064045,0.0002566,4]
[312006896,1705543840711,-273.60464301,0.0002566,4]
[312006899,1705543840720,-688.84064045,0.0002566,4]
[312006902,1705543840729,-285.5184804,0.0002566,4]
[312006905,1705543840738,-688.84064045,0.0002566,4]
[312006908,1705543840747,-500.0,0.0002566,4]
[312006911,1705543840756,-688.84064045,0.0002566,4]
[312006913,1705543840766,-688.84064045,0.0002566,4]
[312006915,1705543840775,-500.0,0.0002566,4]
[312006917,1705543840783,-500.0,0.0002566,4]
[312006920,1705543840792,-688.84064045,0.0002566,4]
[312006923,1705543840801,-688.84064045,0.0002566,4]
[312006926,1705543840810,-688.84064045,0.0002566,4]
[312006929,1705543840819,-688.84064045,0.0002566,4]
[312006932,1705543840829,-688.84064045,0.0002566,4]
[312006935,1705543840838,-500.0,0.0002566,4]
[312006938,1705543840847,-688.84064045,0.0002566,4]
[312006942,1705543840857,-688.84064045,0.0002566,4]
[312006945,1705543840866,-688.84064045,0.0002566,4]
[312006948,1705543840875,-500.0,0.0002566,4]
[312006951,1705543840884,-500.0,0.0002566,4]
[312006954,1705543840893,-688.84064045,0.0002566,4]
[312006956,1705543840902,-688.84064045,0.0002566,4]
[312006959,1705543840911,-500.0,0.0002566,4]
[312006962,1705543840920,-688.84064045,0.0002566,4]
[312006965,1705543840929,-500.0,0.0002566,4]
[312006968,1705543840939,-688.84064045,0.0002566,4]
[312006971,1705543840948,-688.84064045,0.0002566,4]
[312006975,1705543840957,-688.84064045,0.0002566,4]
[312006978,1705543840966,-688.84064045,0.0002566,4]
[312006981,1705543840976,-688.84064045,0.0002566,4]
[312006984,1705543840985,-688.84064045,0.0002566,4]
[312006987,1705543840994,-688.84064045,0.0002566,4]
[312006990,1705543841003,-58327.33359286,0.00025661,2]
[312006993,1705543841012,-50000.0,0.00025672,2]
[312006996,1705543841022,-50000.0,0.00025689,2]
[312006998,1705543841031,-50000.0,0.00025689,2]
[312007001,1705543841040,-722.46780766,0.00025691,2]
[312007003,1705543841050,-722.46780766,0.00025691,2]
[312007005,1705543841060,-722.46780766,0.00025691,2]
[312007006,1705543841070,-722.46780766,0.00025691,2]
[312007008,1705543841079,-722.46780766,0.00025691,2]
[312007010,1705543841089,-722.46780766,0.00025691,2]
[312007013,1705543841098,-722.46780766,0.00025691,2]
[312007014,1705543841107,-722.46780766,0.00025691,2]
[312007016,1705543841117,-722.46780766,0.00025691,2]
[312007018,1705543841126,-722.46780766,0.00025691,2]
[312007020,1705543841135,-50000.0,0.00025692,2]